bitfinex-derivatives/quotes_ETHF0:USTF0_20240829
["timestamp","ask_amount","ask_price","bid_price","bid_amount"]
[1724972110792,0.39605,2524.5,2524.4,0.3565]
[1724972110992,3.36142785,2524.7,2524.4,0.75257]
[1724972111290,0.39604,2524.6,2524.4,0.3565]
[1724972111490,0.39605,2524.5,2524.4,0.3565]
[1724972111987,10.35765,2524.5,2524.1,3.2078]
[1724972112185,0.39615,2523.9,2523.7,1.0265263]
[1724972112382,4.41026,2524.2,2523.6,1.3904263]
[1724972112383,0.39612,2524.1,2523.6,1.3904263]
[1724972112594,0.39618,2523.7,2523.6,0.3639]
[1724972112981,0.39621,2523.5,2523.4,1.03049278]
[1724972113286,0.39621,2523.5,2523.4,0.00396648]
[1724972113882,0.3962,2523.6,2523.4,0.00396648]
[1724972114189,0.39621,2523.5,2523.4,0.00396648]
[1724972117293,19.14740092,2523.5,2523.4,0.00396648]
[1724972117596,0.39629,2523.0,2522.9,4.2343263]
[1724972117893,0.39629,2523.0,2522.8,1.02745818]
[1724972117894,0.3963,2522.9,2522.8,1.02745818]
[1724972118189,4.7459,2522.9,2522.8,1.02745818]
[1724972118394,0.39632,2522.8,2522.7,1.02745818]
[1724972120297,7.78032,2522.8,2522.7,1.02745818]
[1724972120496,0.39635,2522.6,2522.5,1.02745818]
[1724972120696,4.36035,2522.6,2522.5,1.02745818]
[1724972121111,0.39637,2522.5,2522.4,1.02745818]
[1724972121397,0.78357,2522.5,2522.4,1.02745818]
[1724972121794,4.74757,2522.5,2522.4,1.02745818]
[1724972122499,3.42,2522.6,2522.3,1.02745818]
[1724972122500,0.39638,2522.4,2522.3,1.02745818]
[1724972124096,4.36118,2522.4,2522.3,1.02745818]
[1724972124307,0.39635,2522.7,2522.3,5.38864818]
[1724972124597,0.382,2522.8,2522.4,1.41562138]
[1724972124805,0.39638,2522.4,2522.3,1.02592138]
[1724972125000,0.39638,2522.4,2522.3,41.82592138]
[1724972125208,0.39638,2522.4,2522.3,40.8]
[1724972125396,0.99108,2522.1,2522.0,1.54029492]
[1724972125603,0.99108,2522.1,2521.9,1.02581002]
[1724972125604,0.39645,2522.0,2521.9,1.02581002]
[1724972125800,0.39646,2521.9,2521.8,1.02581002]
[1724972126597,3.81646,2522.0,2521.7,1.02581002]
[1724972126804,3.81645,2522.0,2521.8,1.02581002]
[1724972126997,0.39646,2521.9,2521.8,1.02581002]
[1724972127298,0.39646,2521.9,2521.5,2.4495726]
[1724972127299,0.39648,2521.8,2521.7,1.02581002]
[1724972127501,0.39648,2521.8,2521.6,1.02581002]
[1724972128005,0.39649,2521.7,2521.6,1.02581002]
[1724972128503,7.78209,2521.7,2521.6,1.02581002]
[1724972128702,12.28874161,2521.7,2521.6,1.02581002]
[1724972129012,0.39651,2521.6,2521.5,1.02581002]
[1724972129301,0.39654,2521.4,2521.3,1.40851002]
[1724972129506,3.42,2521.6,2521.2,1.02581002]
[1724972129507,0.39656,2521.3,2521.2,1.02581002]
[1724972129696,3.42,2521.3,2521.1,1.02581002]
[1724972129901,3.42,2521.3,2521.0,1.54029492]
[1724972129902,3.42,2521.3,2521.2,1.02581002]
[1724972130402,3.42,2521.3,2521.1,1.02581002]
[1724972130403,7.3864,2521.3,2521.1,1.02581002]
[1724972130610,3.42,2521.3,2521.1,1.02581002]
[1724972131304,8.2157929,2521.2,2521.1,1.02581002]
[1724972131501,3.42,2521.3,2521.1,1.02581002]
[1724972132807,6.6278,2521.5,2521.1,1.02581002]
[1724972133115,3.2078,2521.5,2521.2,0.3597]
[1724972133302,3.60433,2521.5,2521.2,0.3597]
[1724972133498,0.39655,2521.4,2521.2,0.3597]
[1724972133907,7.02433,2521.5,2521.2,0.3597]
[1724972134112,0.39655,2521.4,2521.2,0.3597]
[1724972135606,7.02433,2521.5,2521.2,0.3597]
[1724972136409,0.39654,2521.4,2521.2,0.3597]
[1724972136609,7.02433,2521.5,2521.2,0.3597]
[1724972136814,3.2078,2521.5,2521.2,0.3597]
[1724972137116,3.2078,2521.5,2521.3,0.3706]
[1724972138409,0.00593789,2521.6,2521.3,3.5784]
[1724972141011,0.00593789,2521.6,2521.3,0.3706]
[1724972142010,0.00593789,2521.6,2521.3,0.76715]
[1724972142216,0.00593789,2521.6,2521.3,0.3706]
[1724972145719,0.40244789,2521.6,2521.3,0.3706]
[1724972146015,0.00593789,2521.6,2521.3,0.3706]
[1724972146720,0.00593789,2521.6,2521.3,0.76716]
[1724972147310,0.00593789,2521.6,2521.3,0.3706]
[1724972147507,4.174,2522.3,2521.8,0.39647]
[1724972147508,3.2078,2522.2,2521.8,0.39647]
[1724972147722,3.2078,2522.2,2521.9,0.381]
[1724972147909,7.67403198,2522.2,2521.9,0.7428]
[1724972148825,8.07045198,2522.2,2521.9,0.7428]
[1724972149024,7.67403198,2522.2,2521.9,0.7428]
[1724972149225,3.42593789,2522.3,2521.9,1.13925]
[1724972149528,3.82233789,2522.3,2521.9,0.7428]
[1724972149717,0.39642,2522.2,2521.9,0.7428]
[1724972150220,3.82234789,2522.3,2521.9,0.7428]
[1724972150815,0.39642,2522.2,2522.0,0.3686]
[1724972151510,3.82234789,2522.3,2522.0,0.3686]
[1724972152120,7.03014789,2522.3,2522.0,0.3686]
[1724972153021,0.39642,2522.2,2522.0,0.3686]
[1724972153816,3.82234789,2522.3,2522.0,0.3686]
[1724972154418,3.42593789,2522.3,2522.0,0.3686]
[1724972154618,3.42593789,2522.3,2522.0,0.76505]
[1724972154817,3.82234789,2522.3,2522.0,0.3686]
[1724972156732,3.42593789,2522.3,2522.0,0.3686]
[1724972158126,3.42593789,2522.3,2522.0,0.76505]
[1724972158537,3.42593789,2522.3,2522.0,0.3686]
[1724972159434,0.39642,2522.2,2522.0,0.3686]
[1724972159615,3.82234789,2522.3,2522.0,0.3686]
[1724972160231,3.82234789,2522.3,2522.0,1.39441002]
[1724972160433,0.39642,2522.2,2522.0,1.39441002]
[1724972162030,0.39643,2522.1,2522.0,1.39441002]
[1724972162234,0.39643,2522.1,2522.0,1.02581002]
[1724972163333,4.74854666,2522.2,2522.0,3.52170409]
[1724972163624,5.80733574,2522.3,2522.1,0.3754]
[1724972163824,5.80733574,2522.3,2522.2,0.3866]
[1724972163825,3.61014789,2522.3,2522.2,0.3866]
[1724972164417,0.39644,2522.1,2521.8,0.00593789]
[1724972164633,2.47090267,2522.1,2521.8,0.00593789]
[1724972164927,2.47091267,2522.0,2521.8,0.00593789]
[1724972165225,2.07446267,2522.0,2521.8,0.00593789]
[1724972165833,2.47092267,2521.9,2521.8,0.00593789]
[1724972166528,0.39646,2521.9,2521.8,0.00593789]
[1724972166935,1.38762,2521.9,2521.8,0.00593789]
[1724972167231,2.98953834,2521.9,2521.8,0.00593789]
[1724972168431,0.39646,2521.9,2521.8,0.00593789]
[1724972168635,2.59307834,2522.0,2521.8,0.00593789]
[1724972168839,2.07334366,2522.0,2521.8,0.78131789]
[1724972169023,2.07334366,2522.1,2521.9,0.7162]
[1724972169226,2.07334366,2522.0,2521.9,0.3633]
[1724972169429,2.07307789,2522.0,2521.9,0.3633]
[1724972169738,2.07307789,2522.1,2521.9,0.3633]
[1724972170626,0.90027789,2522.2,2522.1,0.39643]
[1724972170824,0.00593789,2522.3,2522.0,7.37331479]
[1724972171027,0.00593789,2522.3,2522.1,0.74932]
[1724972171427,0.00593789,2522.3,2522.1,4.71412]
[1724972171636,0.00593789,2522.3,2522.2,0.39641]
[1724972172333,0.00593789,2522.3,2522.2,4.36121]
[1724972172932,0.00593789,2522.3,2522.2,0.39641]
[1724972173335,0.00593789,2522.3,2522.2,4.36121]
[1724972173534,0.00593789,2522.3,2522.2,10.36121]
[1724972173847,2.96467834,2523.0,2522.7,0.39633]
[1724972174135,2.98932834,2523.3,2522.8,1.0871]
[1724972174526,0.39626,2523.2,2522.8,1.0871]
[1724972174728,2.59307834,2523.3,2522.8,1.0871]
[1724972174943,0.3963,2523.0,2522.8,0.3558]
[1724972175129,0.3549,2522.9,2522.8,0.3558]
[1724972177840,0.7512,2522.9,2522.7,3.2078]
[1724972178035,0.3549,2522.9,2522.7,3.2078]
[1724972178229,0.3549,2522.9,2522.5,0.7289]
[1724972178637,10.38355834,2523.1,2522.5,1.12527]
[1724972178927,0.3836,2523.0,2522.6,0.3737]
[1724972179441,0.77989,2523.0,2522.6,0.3737]
[1724972179636,0.3836,2523.0,2522.6,0.3737]
[1724972183944,3.60998789,2523.3,2522.7,0.39633]
[1724972184237,3.21373789,2523.3,2523.0,0.39628]
[1724972184437,0.00593789,2523.3,2523.1,0.7268]
[1724972184633,0.00593789,2523.3,2523.2,0.3574]
[1724972185427,0.00593789,2523.3,2523.2,7.92466]
[1724972185831,0.00593789,2523.3,2523.2,11.34466]
[1724972186437,0.00593789,2523.3,2523.2,7.92466]
[1724972192443,4.47988565,2523.9,2523.7,0.39618]
[1724972192663,4.11388565,2523.9,2523.8,0.3607]
[1724972192855,4.48948565,2523.9,2523.8,0.3607]
[1724972193144,0.3756,2523.9,2523.8,0.3607]
[1724972193643,0.3756,2523.9,2523.6,0.40212789]
[1724972193846,0.77175,2523.9,2523.6,0.00593789]
[1724972194049,0.3771,2523.8,2523.6,0.00593789]
[1724972194248,5.19078843,2523.8,2523.6,0.00593789]
[1724972195135,4.79461843,2523.8,2523.6,0.00593789]
[1724972195444,0.3771,2523.8,2523.6,0.00593789]
[1724972196638,0.3771,2523.8,2523.6,0.37153789]
[1724972196936,0.00593789,2524.1,2524.0,0.39613]
[1724972197136,0.3527,2524.6,2524.5,0.39605]
[1724972197640,0.3527,2525.0,2524.5,0.39604]
[1724972197951,0.396,2524.9,2524.6,0.3624]
[1724972198640,0.75461789,2525.0,2524.6,0.3624]
[1724972198841,0.35863789,2525.0,2524.6,0.3624]
[1724972199046,0.75461789,2525.0,2524.6,0.3624]
[1724972199349,0.75461789,2525.0,2524.4,3.98946]
[1724972199651,0.39599,2524.9,2524.4,3.98946]
[1724972200751,0.35863789,2525.0,2524.6,3.42]
[1724972200950,0.35863789,2525.0,2524.6,3.81604]
[1724972201154,0.35863789,2525.0,2524.7,3.5896]
[1724972201449,0.35863789,2525.0,2524.6,3.42]
[1724972201658,0.35863789,2525.0,2524.4,7.40946]
[1724972202339,0.35863789,2525.0,2524.5,0.39605]
[1724972202539,0.35863789,2525.0,2524.6,0.39604]
[1724972202847,0.35863789,2525.0,2524.7,3.60381]
[1724972202848,0.00593789,2525.0,2524.7,3.60381]
[1724972203155,0.00593789,2525.0,2524.9,0.39599]
[1724972203750,0.00593789,2525.0,2524.9,4.35679]
[1724972203953,0.3711,2525.8,2524.9,4.35679]
[1724972203954,0.76695,2525.8,2525.2,0.39594]
[1724972204148,0.7513,2525.8,2525.5,3.2078]
[1724972204447,0.7513,2525.8,2525.0,0.3888]
[1724972204448,3.42,2525.6,2525.0,0.3888]
[1724972204636,3.81589,2525.6,2525.0,0.78477]
[1724972205041,3.82182789,2525.6,2525.0,0.79070789]
[1724972205558,0.3959,2525.5,2525.0,0.00593789]
[1724972205847,4.32135094,2525.5,2525.0,0.00593789]
[1724972206150,4.71726094,2525.5,2525.0,0.00593789]
[1724972207650,3.60962789,2525.6,2525.1,3.2078]
[1724972207952,0.3959,2525.5,2525.1,3.2078]
[1724972208339,4.65072739,2525.5,2525.1,3.2078]
[1724972208955,0.3833,2525.4,2525.1,3.2078]
[1724972209248,0.00593789,2525.6,2525.4,0.3959]
[1724972209449,0.00593789,2525.6,2525.5,3.5907]
[1724972209754,0.40181789,2525.6,2525.5,3.2078]
[1724972209942,3.96513789,2525.6,2525.5,3.2078]
[1724972210345,4.36101789,2525.6,2525.2,3.2078]
[1724972210555,0.40181789,2525.6,2525.2,3.2078]
[1724972210757,0.39592,2525.4,2525.1,0.3829]
[1724972211051,0.359,2525.3,2525.1,0.3829]
[1724972211255,1.12033,2525.3,2525.0,0.00593789]
[1724972211556,1.49093,2525.3,2525.0,0.00593789]
[1724972211749,1.095,2525.3,2525.0,0.00593789]
[1724972212152,1.49093,2525.3,2525.0,0.00593789]
[1724972212349,1.095,2525.3,2525.0,0.00593789]
[1724972212749,1.49094,2525.3,2525.0,0.00593789]
[1724972213654,1.095,2525.3,2525.0,0.00593789]
[1724972214057,1.49093,2525.3,2525.0,0.00593789]
[1724972217660,0.39595,2525.2,2525.0,0.00593789]
[1724972217849,0.39596,2525.1,2525.0,0.00593789]
[1724972218255,0.39595,2525.2,2525.0,0.00593789]
[1724972218852,0.39601,2524.8,2524.5,3.2078]
[1724972219154,7.5791833,2525.1,2524.3,0.7227]
[1724972219458,0.39605,2524.6,2524.3,0.3619]
[1724972219647,0.7704,2524.5,2524.3,0.3619]
[1724972220555,0.352,2524.7,2524.3,4.17797]
[1724972220856,0.396,2524.9,2524.6,3.2078]
[1724972220857,0.3532,2524.8,2524.6,3.2078]
[1724972221067,3.2078,2525.3,2524.8,0.396]
[1724972221251,0.39594,2525.2,2524.7,4.56421]
[1724972221446,3.561,2525.3,2524.7,4.56421]
[1724972221652,0.39594,2525.2,2524.7,4.56421]
[1724972223553,3.95694,2525.3,2524.8,0.39601]
[1724972223755,3.2078,2525.3,2524.9,6.6278]
[1724972223951,3.60374,2525.3,2524.9,6.6278]
[1724972224152,0.39594,2525.2,2524.9,6.6278]
[1724972224355,3.60374,2525.3,2524.9,6.6278]
[1724972225251,3.60374,2525.3,2524.9,3.2078]
[1724972226053,3.60374,2525.3,2524.9,3.60379]
[1724972226255,3.60374,2525.3,2524.6,3.2078]
[1724972226256,0.39598,2525.0,2524.6,3.2078]
[1724972226465,1.4952,2524.9,2524.5,4.107]
[1724972226650,1.4952,2524.9,2524.6,0.3799]
[1724972226651,5.48114928,2524.9,2524.6,0.3799]
[1724972226856,5.87713928,2524.9,2524.6,0.3799]
[1724972227654,5.87714928,2524.9,2524.6,0.3799]
[1724972229965,0.39601,2524.8,2524.6,0.3799]
[1724972230277,5.87714928,2524.9,2524.6,0.3799]
[1724972230470,0.39601,2524.8,2524.6,0.3799]
[1724972230666,0.39602,2524.7,2524.6,0.3799]
[1724972231165,0.39604,2524.6,2524.5,3.2078]
[1724972234163,1.13748,2524.4,2524.2,4.4587]
[1724972234365,0.3961,2524.2,2524.1,0.35763789]
[1724972234561,0.3961,2524.2,2524.1,0.00593789]
[1724972234761,5.34796,2524.2,2524.1,0.00593789]
[1724972235665,4.3577,2524.2,2524.1,0.00593789]
[1724972237572,0.3961,2524.2,2524.1,0.00593789]
[1724972238571,0.7414,2524.4,2524.1,0.00593789]
[1724972238772,0.39609,2524.3,2524.1,0.00593789]
[1724972238983,0.3961,2524.2,2524.1,0.00593789]
[1724972244177,4.88072693,2524.3,2524.1,0.00593789]
[1724972244379,4.48463693,2524.3,2524.1,0.00593789]
[1724972244583,3.2078,2524.6,2524.1,6.63373789]
[1724972244781,0.39608,2524.4,2524.2,0.3644]
[1724972245296,3.2078,2524.6,2524.3,0.3806]
[1724972245485,3.60384,2524.6,2524.3,0.3806]
[1724972245673,0.39606,2524.5,2524.3,0.3806]
[1724972246375,0.39607,2524.4,2524.3,0.3806]
[1724972246772,3.5821,2524.6,2524.1,3.21373789]
[1724972246978,0.3961,2524.2,2524.1,0.00593789]
[1724972247579,4.3577,2524.2,2524.1,0.00593789]
[1724972248085,5.0689,2524.2,2524.1,0.00593789]
[1724972250991,5.0689,2524.2,2523.4,0.65750775]
[1724972250992,14.0928,2524.2,2523.4,3.2078]
[1724972251280,3.2078,2524.0,2523.5,0.3735]
[1724972251483,0.39615,2523.9,2523.5,0.3735]
[1724972251681,4.3715403,2523.9,2523.6,0.3551]
[1724972252075,0.39617,2523.8,2523.6,0.3551]
[1724972252388,3.60987789,2524.0,2523.6,0.3551]
[1724972253082,0.39615,2523.9,2523.6,0.3551]
[1724972254882,0.39618,2523.8,2523.6,0.3551]
[1724972255085,0.39616,2523.9,2523.6,0.3551]
[1724972255781,0.39619,2523.6,2523.5,0.37943789]
[1724972257083,4.19014492,2523.8,2523.5,7.76183789]
[1724972257282,0.00593789,2524.0,2523.8,0.39616]
[1724972257483,0.00593789,2524.0,2523.9,0.7621]
[1724972259280,0.00593789,2524.0,2523.9,4.57825]
[1724972259484,6.52489712,2524.7,2523.9,8.1445]
[1724972259688,0.39605,2524.6,2524.1,0.39611]
[1724972259882,4.18306329,2524.5,2524.0,3.60392]
[1724972260079,0.39607,2524.4,2524.0,3.2078]
[1724972261987,0.39609,2524.3,2524.0,3.2078]
[1724972262191,0.39608,2524.4,2524.0,3.2078]
[1724972264894,0.39608,2524.4,2524.1,0.3662]
[1724972265496,2.95173501,2524.5,2524.1,0.3662]
[1724972265497,3.34779501,2524.5,2524.1,0.3662]
[1724972265699,2.98739501,2524.5,2524.1,0.3662]
[1724972266001,0.40199789,2524.5,2524.1,0.3662]
[1724972266499,2.98739501,2524.5,2524.1,0.3662]
[1724972268104,2.98739501,2524.5,2524.1,3.574]
[1724972268511,2.98739501,2524.5,2524.1,0.3662]
[1724972268801,2.98739501,2524.5,2524.1,3.574]
[1724972270191,2.98739501,2524.5,2524.1,0.3662]
[1724972270407,2.98739501,2524.5,2524.1,3.574]
[1724972270601,2.98739501,2524.5,2524.1,0.3662]
[1724972271011,2.98739501,2524.5,2524.1,0.76231]
[1724972271209,7.16158548,2524.4,2524.1,0.3662]
[1724972272207,2.58539712,2524.3,2524.1,0.3662]
[1724972272505,2.58539712,2524.3,2524.2,0.3961]
[1724972272708,2.59133501,2524.5,2524.3,0.39608]
[1724972273003,0.00593789,2524.5,2524.4,0.3884]
[1724972273204,0.00593789,2524.5,2524.4,0.7674]
[1724972274406,0.00593789,2524.5,2524.4,3.9752]
[1724972275817,0.00593789,2524.5,2524.4,4.37127]
[1724972276017,0.00593789,2524.5,2524.4,11.75287]
[1724972276425,0.00593789,2524.5,2524.4,17.75287]
[1724972276624,0.00593789,2524.5,2524.4,58.55287]
[1724972278019,2.58539712,2525.0,2524.8,0.39601]
[1724972278219,2.58539712,2525.0,2524.9,1.1291]
[1724972278424,2.58539712,2525.1,2524.9,1.1291]
[1724972279023,0.3805,2525.2,2524.9,8.5091]
[1724972279024,2.58539712,2525.2,2524.9,8.5091]
[1724972279319,0.00593789,2525.3,2525.2,0.39594]
[1724972279520,0.00593789,2525.3,2525.1,3.2078]
[1724972280318,0.39594,2525.2,2525.1,3.2078]
[1724972280523,7.89038439,2525.2,2525.1,3.2078]
[1724972280726,12.20278439,2525.2,2525.1,3.2078]
[1724972281515,9.61738727,2525.2,2525.1,3.2078]
[1724972281717,11.80684439,2525.2,2524.7,3.21373789]
[1724972281919,0.39598,2525.0,2524.7,3.21373789]
[1724972282621,0.39598,2525.0,2524.7,0.00593789]
[1724972282622,0.39601,2524.8,2524.7,0.00593789]
[1724972283023,11.8956562,2524.8,2524.7,0.00593789]
[1724972283427,9.3054137,2524.8,2524.7,0.00593789]
[1724972285528,15.3054137,2524.8,2524.7,0.00593789]
[1724972285827,17.8956562,2524.8,2524.7,0.00593789]
[1724972286032,11.8956562,2524.8,2524.7,0.00593789]
[1724972286426,9.3054137,2524.8,2524.7,0.00593789]
[1724972286923,8.9094037,2524.8,2524.7,0.00593789]
[1724972287122,0.3524,2524.8,2524.7,0.00593789]
[1724972290225,2.9862225,2525.0,2524.7,0.00593789]
[1724972290427,2.9468425,2525.0,2524.7,0.00593789]
[1724972290731,3.3428225,2525.0,2524.7,0.37603789]
[1724972291434,0.75258,2525.0,2524.7,0.37603789]
[1724972291631,3.3755125,2525.1,2524.7,0.37603789]
[1724972291931,0.3893,2525.1,2524.7,7.39985789]
[1724972292131,0.78526,2525.1,2524.7,3.79603789]
[1724972292533,0.78526,2525.1,2524.7,7.39985789]
[1724972292839,0.78526,2525.1,2524.7,7.00383789]
[1724972295029,0.3893,2525.1,2524.8,0.396]
[1724972295634,0.78526,2525.1,2524.7,7.00383789]
[1724972296029,2.99212039,2525.3,2524.9,3.81598]
[1724972296232,2.99212039,2525.3,2525.0,3.5835]
[1724972296233,0.40187789,2525.3,2525.0,3.5835]
[1724972297527,0.00593789,2525.3,2525.0,3.5835]
[1724972297732,0.00593789,2525.3,2525.1,3.7901]
[1724972298038,0.00593789,2525.3,2525.2,0.368]
[1724972301731,0.00593789,2525.3,2525.1,0.3701]
[1724972302626,0.00593789,2525.3,2525.1,0.76606]
[1724972305945,0.00593789,2525.3,2525.2,0.39594]
[1724972306144,0.00593789,2525.3,2525.2,4.35594]
[1724972308344,0.00593789,2525.3,2525.2,7.56374]
[1724972310750,0.00593789,2525.3,2525.2,3.60374]
[1724972311644,0.00593789,2525.3,2525.2,7.56374]
[1724972312655,0.00593789,2525.3,2525.2,3.60374]
[1724972315255,0.00593789,2525.3,2525.2,7.56374]
[1724972318848,3.3378425,2525.9,2525.7,0.39586]
[1724972319043,3.3378425,2525.9,2525.2,13.1678]
[1724972319044,0.7476,2525.9,2525.8,0.77795]
[1724972319444,0.7476,2525.9,2525.8,0.3821]
[1724972319651,0.366,2525.9,2525.8,0.3821]
[1724972320649,0.76183,2525.9,2525.8,0.3821]
[1724972320842,1.13703,2525.9,2525.6,3.60367]
[1724972321257,0.39587,2525.7,2525.6,3.2078]
[1724972321457,4.82841615,2525.8,2525.4,0.7605]
[1724972321752,4.82841615,2525.8,2525.5,0.39589]
[1724972322144,4.43254615,2525.8,2525.5,0.39589]
[1724972322350,0.39586,2525.8,2525.5,0.39589]
[1724972322854,3.3314425,2525.9,2525.5,0.39589]
[1724972323154,0.39585,2525.8,2525.5,0.39589]
[1724972326058,0.39585,2525.8,2525.5,1.82589]
[1724972326759,3.3314425,2525.9,2525.7,0.39586]
[1724972326952,0.7412,2525.9,2525.7,1.82586]
[1724972327154,0.7412,2525.9,2525.8,0.3679]
[1724972327561,0.366,2525.9,2525.8,0.3679]
[1724972327864,2.98220108,2526.1,2525.8,2.19374]
[1724972328063,0.00395858,2526.1,2525.8,2.1632]
[1724972328360,0.39975858,2526.1,2525.8,2.55904]
[1724972328952,0.39975858,2526.1,2525.8,0.3679]
[1724972329353,0.39584,2525.9,2525.7,3.2078]
[1724972329554,0.39585,2525.8,2525.7,3.2078]
[1724972329762,0.75235,2525.8,2525.7,3.2078]
[1724972329959,0.3565,2525.8,2525.7,3.2078]
[1724972330458,0.75235,2525.8,2525.7,3.2078]
[1724972332354,0.3565,2525.8,2525.7,3.2078]
[1724972334063,0.7176,2525.8,2525.7,3.2078]
[1724972334565,0.7176,2525.8,2525.6,0.39588]
[1724972334766,0.3611,2525.8,2525.7,3.2078]
[1724972335562,2.9860725,2526.0,2525.7,3.2078]
[1724972335763,3.3471725,2526.0,2525.7,3.2078]
[1724972335965,0.39584,2525.9,2525.7,3.2078]
[1724972338055,3.60364,2525.9,2525.6,0.39588]
[1724972338257,2.5902425,2525.8,2525.6,0.39588]
[1724972338665,3.3720925,2525.8,2525.5,2.55909]
[1724972338868,3.3720925,2525.8,2525.5,1.82589]
[1724972339367,3.3720925,2525.8,2525.5,0.39589]
[1724972340357,2.5902425,2525.7,2525.5,0.39589]
[1724972341059,0.39588,2525.6,2525.3,5.03372]
[1724972341566,0.77038,2525.6,2525.3,5.03372]
[1724972341770,1.12528,2525.6,2525.3,5.03372]
[1724972342555,0.7294,2525.6,2525.3,5.03372]
[1724972342759,0.3959,2525.5,2525.3,4.6378]
[1724972344275,3.7155325,2525.6,2525.3,5.03372]
[1724972344471,0.3959,2525.5,2525.3,4.6378]
[1724972346268,3.2078,2525.5,2525.0,41.82500288]
[1724972346586,0.39599,2524.9,2524.8,1.83405761]
[1724972346768,0.39599,2524.9,2524.8,1.1076]
[1724972349370,0.77608,2525.0,2524.8,1.1076]
[1724972349578,0.39599,2524.9,2524.8,1.1076]
[1724972351173,0.39598,2525.0,2524.8,2.5376]
[1724972351574,0.39599,2524.9,2524.8,2.5376]
[1724972351974,0.39601,2524.8,2524.7,0.00593789]
[1724972352274,1.38603,2524.8,2524.7,0.00593789]
[1724972352465,5.70823,2524.8,2524.7,0.00593789]
[1724972354476,0.39607,2524.4,2524.2,42.6184]
[1724972354680,0.39607,2524.4,2524.2,2.5439]
[1724972356073,0.39607,2524.4,2524.2,5.7517]
[1724972356484,0.39609,2524.3,2524.2,5.7517]
[1724972356779,0.39608,2524.4,2524.2,5.7517]
[1724972358070,0.39609,2524.3,2524.2,5.7517]
[1724972358881,0.39608,2524.4,2524.2,5.7517]
[1724972359870,0.39609,2524.3,2524.2,5.7517]
[1724972361584,0.39609,2524.3,2524.2,2.5439]
[1724972362778,0.39609,2524.3,2524.2,0.3884]
[1724972363179,0.39609,2524.3,2524.0,0.00593789]
[1724972363180,0.39612,2524.1,2524.0,0.00593789]
[1724972363372,0.39612,2524.1,2523.5,3.2078]
[1724972363373,5.03392,2524.1,2523.5,3.2078]
[1724972363574,0.39615,2523.9,2523.8,1.43]
[1724972366692,0.39618,2523.8,2523.6,1.43593789]
[1724972367182,0.39616,2523.9,2523.6,1.43593789]
[1724972367680,0.39614,2524.0,2523.8,3.2078]
[1724972367884,0.39613,2524.0,2523.8,3.2078]
[1724972368288,0.39615,2523.9,2523.8,3.2078]
[1724972370285,4.35855,2523.9,2523.8,3.2078]
[1724972371888,0.39615,2523.9,2523.8,3.2078]
[1724972372091,4.35855,2523.9,2523.8,3.2078]
[1724972372280,0.39615,2523.9,2523.8,3.2078]
[1724972372481,4.35855,2523.9,2523.8,3.2078]
[1724972372677,0.39615,2523.9,2523.8,3.2078]
[1724972372881,4.35855,2523.9,2523.8,3.2078]
[1724972373087,0.39615,2523.9,2523.8,3.2078]
[1724972373286,4.35855,2523.9,2523.8,3.2078]
[1724972373485,0.39615,2523.9,2523.8,3.2078]
[1724972373687,4.35855,2523.9,2523.8,3.2078]
[1724972373886,0.39615,2523.9,2523.8,3.2078]
[1724972374085,4.35855,2523.9,2523.8,3.2078]
[1724972374395,0.39614,2524.0,2523.8,3.2078]
[1724972374694,0.39614,2524.0,2523.8,3.9654]
[1724972375291,0.39615,2523.9,2523.8,3.9654]
[1724972378982,0.39615,2523.9,2523.8,4.3424]
[1724972381584,0.39615,2523.9,2523.8,3.5848]
[1724972381786,4.35855,2523.9,2523.8,3.5848]
[1724972381987,0.39615,2523.9,2523.8,3.5848]
[1724972382190,4.35855,2523.9,2523.8,3.5848]
[1724972382991,4.35855,2523.9,2523.8,0.377]
[1724972387303,0.39615,2523.9,2523.8,0.377]
[1724972388504,0.3821,2524.3,2523.8,0.77316]
[1724972388800,0.39609,2524.3,2524.0,5.03392]
[1724972389105,0.39609,2524.3,2524.1,0.39612]
[1724972389303,0.39609,2524.3,2524.2,0.7592]
[1724972389502,0.39609,2524.3,2524.2,1.1208]
[1724972389702,0.00593789,2524.6,2524.2,2.94689]
[1724972389996,0.39607,2524.4,2524.3,3.2078]
[1724972391800,0.39607,2524.4,2524.2,1.1208]
[1724972391998,4.29571598,2524.5,2524.3,1.43]
[1724972392196,0.00593789,2524.6,2524.3,1.43]
[1724972392399,0.00593789,2524.6,2524.5,4.6378]
[1724972396706,0.00593789,2524.6,2524.5,3.2078]
[1724972398202,0.40197789,2524.6,2524.5,3.2078]
[1724972400403,0.40197789,2524.6,2524.3,1.43]
[1724972400404,0.39607,2524.4,2524.3,1.43]
[1724972400608,0.39609,2524.3,2524.2,4.3286]
[1724972400805,0.39609,2524.3,2524.0,4.50312]
[1724972400806,0.39612,2524.1,2524.0,4.107]
[1724972401307,13.9382625,2524.1,2524.0,4.09511633]
[1724972401503,11.65100343,2524.1,2524.0,4.09511633]
[1724972401705,3.3615525,2524.2,2524.0,7.30291633]
[1724972401911,0.77131,2524.2,2524.0,7.30291633]
[1724972402116,2.9863325,2524.3,2524.1,0.3742]
[1724972402403,2.1628,2524.5,2524.1,1.8042]
[1724972402404,2.5902425,2524.4,2524.1,1.8042]
[1724972402612,0.39609,2524.3,2524.1,0.3742]
[1724972403610,3.6982425,2524.5,2524.1,0.3742]
[1724972403611,0.3961,2524.2,2524.1,0.3742]
[1724972404514,0.39609,2524.3,2524.1,0.3742]
[1724972405610,0.3961,2524.2,2524.1,0.3742]
[1724972407111,2.9863425,2524.2,2524.1,0.3742]
[1724972407309,0.39613,2524.0,2523.9,0.3716]
[1724972408015,0.39613,2524.0,2523.9,4.334]
[1724972410220,0.39613,2524.0,2523.9,0.3716]
[1724972410715,2.5902425,2524.2,2523.9,5.764]
[1724972410918,2.5902425,2524.4,2524.2,1.43]
[1724972411116,2.5902425,2524.4,2524.3,0.3733]
[1724972411718,2.9863125,2524.4,2524.3,0.3733]